[Event "44th Chess Olympiad Women 2022"]
[Site "Chennai"]
[Date "2022.08.01"]
[Round "4.29"]
[White "Shabanaj, Eglantina"]
[Black "Zuriel, Marisa"]
[Result "1-0"]
[WhiteElo "1940"]
[BlackElo "2174"]
[Annotator "NA RC"]
[PlyCount "75"]
[EventDate "2022.??.??"]
[TimeControl "60"]

1. Nf3 {[%emt 0:00:02]} c5 {[%emt 0:00:13]} 2. e3 {[%emt 0:00:10]} g6 {[%emt 0:
00:00]} 3. c3 {[%emt 0:01:03]} Bg7 {[%emt 0:01:15]} 4. d4 {[%emt 0:01:13]} Nf6
{[%emt 0:00:26]} 5. Bd3 {[%emt 0:00:42]} O-O {[%emt 0:01:12]} 6. O-O {[%emt 0:
00:00]} d5 {[%emt 0:05:20]} 7. Nbd2 {[%emt 0:01:43]} Nc6 {[%emt 0:00:39]} 8.
Qe2 {[%emt 0:04:02]} Re8 {[%emt 0:05:22]} 9. Ne5 {[%emt 0:04:57]} Nxe5 {
[%emt 0:11:32]} 10. dxe5 {[%emt 0:00:21]} Nd7 {[%emt 0:00:04]} 11. f4 {[%emt 0:
00:00]} b6 {[%emt 0:00:39]} 12. e4 {[%emt 0:03:10]} e6 {[%emt 0:02:23]} 13. Nf3
{[%emt 0:04:28]} Bb7 {[%emt 0:03:08]} 14. b3 {[%emt 0:11:21]} Qc7 {[%emt 0:00:
00]} 15. c4 {[%emt 0:04:11]} dxc4 {[%emt 0:02:30]} 16. Bxc4 {[%emt 0:02:33]} a6
{[%emt 0:03:24]} 17. a4 {[%emt 0:04:11]} Bc6 {[%emt 0:04:27]} 18. Bb2 {[%emt 0:
00:00]} Qb7 {[%emt 0:00:37]} 19. Bd3 {[%emt 0:08:19]} b5 {[%emt 0:01:25]} 20.
axb5 {[%emt 0:02:53]} axb5 {[%emt 0:00:05]} 21. Rxa8 {[%emt 0:00:15]} Rxa8 {
[%emt 0:00:10]} 22. f5 {[%emt 0:00:54]} Qb6 {[%emt 0:21:04]} 23. Kh1 {[%emt 0:
00:00]} c4 {[%emt 0:02:25]} 24. bxc4 {[%emt 0:00:50]} Nc5 {[%emt 0:05:13]} 25.
Bd4 {[%emt 0:01:15]} Rd8 {[%emt 0:00:31]} 26. Qe3 {[%emt 0:01:17]} Rxd4 {
[%emt 0:04:16]} 27. Qxd4 {[%emt 0:00:34]} bxc4 {[%emt 0:00:44]} 28. Bxc4 {
[%emt 0:01:30]} Bxe4 {[%emt 0:01:58]} 29. fxe6 {[%emt 0:00:16]} fxe6 {[%emt 0:
00:00]} 30. Ng5 {[%emt 0:01:59]} Bf5 {[%emt 0:00:03]} 31. Nxe6 {[%emt 0:01:00]}
Bxe6 {[%emt 0:00:48]} 32. Bxe6+ {[%emt 0:00:06]} Kh8 {[%emt 0:00:09]} 33. Bc4 {
[%emt 0:01:43]} h5 {[%emt 0:01:21]} 34. Qd5 {[%emt 0:04:31]} Kh7 {[%emt 0:00:
00]} 35. e6 {[%emt 0:00:39]} Qa7 {[%emt 0:01:41]} 36. h3 {[%emt 0:01:00]} Na4 {
[%emt 0:00:46]} 37. Bd3 {[%emt 0:00:58]} Nb2 {[%emt 0:00:54]} 38. Qxh5+ {
[%emt 0:00:19]} 1-0

[Event "44th Chess Olympiad Women 2022"]
[Site "Chennai"]
[Date "2022.08.01"]
[Round "4.30"]
[White "Aydin, Gulenay"]
[Black "Manova, Ivana"]
[Result "1-0"]
[WhiteElo "2100"]
[BlackElo "1849"]
[Annotator "NA RC"]
[PlyCount "85"]
[EventDate "2022.??.??"]
[TimeControl "60"]

1. e4 {[%emt 0:00:04]} e5 {[%emt 0:00:11]} 2. Nf3 {[%emt 0:00:06]} Nc6 {
[%emt 0:00:09]} 3. Nc3 {[%emt 0:00:07]} Nf6 {[%emt 0:00:11]} 4. Bb5 {[%emt 0:
00:00]} Bd6 {[%emt 0:00:23]} 5. d3 {[%emt 0:00:38]} a6 {[%emt 0:00:29]} 6. Ba4
{[%emt 0:00:50]} O-O {[%emt 0:00:32]} 7. a3 {[%emt 0:04:25]} b5 {[%emt 0:05:17]
} 8. Bb3 {[%emt 0:00:12]} Bb7 {[%emt 0:02:12]} 9. g4 {[%emt 0:10:28]} Nd4 {
[%emt 0:03:58]} 10. Ba2 {[%emt 0:27:42]} c5 {[%emt 0:06:21]} 11. g5 {[%emt 0:
00:00]} Ne8 {[%emt 0:00:20]} 12. h4 {[%emt 0:05:13]} Kh8 {[%emt 0:04:18]} 13.
Nxd4 {[%emt 0:06:58]} exd4 {[%emt 0:00:35]} 14. Nd5 {[%emt 0:02:00]} Nc7 {
[%emt 0:06:51]} 15. Nf4 {[%emt 0:17:15]} Ne6 {[%emt 0:18:01]} 16. Bd5 {[%emt 0:
00:00]} Bc6 {[%emt 0:07:31]} 17. Bxc6 {[%emt 0:04:40]} dxc6 {[%emt 0:00:50]}
18. Nxe6 {[%emt 0:02:52]} fxe6 {[%emt 0:00:02]} 19. Qg4 {[%emt 0:00:17]} e5 {
[%emt 0:05:13]} 20. O-O {[%emt 0:00:07]} Qc7 {[%emt 0:05:48]} 21. Bd2 {[%emt 0:
00:00]} g6 {[%emt 0:02:48]} 22. Kg2 {[%emt 0:01:19]} Qf7 {[%emt 0:01:52]} 23.
f3 {[%emt 0:00:19]} c4 {[%emt 0:00:51]} 24. Rf2 {[%emt 0:01:22]} Ra7 {[%emt 0:
00:00]} 25. Raf1 {[%emt 0:00:36]} cxd3 {[%emt 0:00:30]} 26. cxd3 {[%emt 0:00:
00]} Qb3 {[%emt 0:13:26]} 27. f4 {[%emt 0:00:01]} exf4 {[%emt 0:00:17]} 28.
Bxf4 {[%emt 0:00:07]} Bxf4 {[%emt 0:02:46]} 29. Rxf4 {[%emt 0:00:01]} Re8 {
[%emt 0:03:12]} 30. Rf8+ {[%emt 0:03:03]} Rxf8 {[%emt 0:00:20]} 31. Rxf8+ {
[%emt 0:00:02]} Kg7 {[%emt 0:00:05]} 32. Rf2 {[%emt 0:00:29]} Rf7 {[%emt 0:00:
00]} 33. Rxf7+ {[%emt 0:00:38]} Qxf7 {[%emt 0:00:24]} 34. Qc8 {[%emt 0:00:02]}
Qf4 {[%emt 0:01:07]} 35. Qd7+ {[%emt 0:00:43]} Kg8 {[%emt 0:00:37]} 36. Qd8+ {
[%emt 0:00:18]} Kf7 {[%emt 0:00:22]} 37. Qxd4 {[%emt 0:01:14]} Qg4+ {[%emt 0:
00:00]} 38. Kf1 {[%emt 0:00:04]} Qxh4 {[%emt 0:02:47]} 39. Qf2+ {[%emt 0:01:53]
} Qxf2+ {[%emt 0:00:40]} 40. Kxf2 {[%emt 0:00:06]} h5 {[%emt 0:03:14]} 41. gxh6
{[%emt 0:31:37]} g5 {[%emt 0:30:20]} 42. d4 {[%emt 0:00:15]} Kg6 {[%emt 0:00:
00]} 43. d5 {[%emt 0:00:06]} 1-0

[Event "44th Chess Olympiad Women 2022"]
[Site "Chennai"]
[Date "2022.08.01"]
[Round "4.30"]
[White "Nikolovska, Dragana"]
[Black "Okuyaz, Duru"]
[Result "0-1"]
[WhiteElo "1876"]
[BlackElo "2090"]
[Annotator "NA RC"]
[PlyCount "66"]
[EventDate "2022.??.??"]
[TimeControl "60"]

1. e4 {[%emt 0:00:05]} e6 {[%emt 0:00:07]} 2. d4 {[%emt 0:00:09]} d5 {[%emt 0:
00:00]} 3. Nd2 {[%emt 0:00:09]} c5 {[%emt 0:00:06]} 4. Ngf3 {[%emt 0:05:20]}
cxd4 {[%emt 0:00:08]} 5. Nxd4 {[%emt 0:05:44]} Nf6 {[%emt 0:00:07]} 6. e5 {
[%emt 0:07:26]} Nfd7 {[%emt 0:00:09]} 7. N2f3 {[%emt 0:00:15]} Nc6 {[%emt 0:00:
00]} 8. Nxc6 {[%emt 0:07:17]} bxc6 {[%emt 0:00:11]} 9. c3 {[%emt 0:05:11]} Qc7
{[%emt 0:02:24]} 10. Bf4 {[%emt 0:01:25]} Qb6 {[%emt 0:00:10]} 11. Rb1 {
[%emt 0:10:30]} Ba6 {[%emt 0:03:40]} 12. Be2 {[%emt 0:05:40]} Bb5 {[%emt 0:00:
00]} 13. Bd3 Bxd3 {[%emt 0:00:31]} 14. Qxd3 {[%emt 0:00:34]} Be7 {[%emt 0:00:
00]} 15. Qe2 {[%emt 0:00:28]} O-O {[%emt 0:00:35]} 16. O-O {[%emt 0:04:49]} a5
{[%emt 0:07:25]} 17. b4 {[%emt 0:18:55]} axb4 {[%emt 0:02:18]} 18. Nd4 {
[%emt 0:00:14]} Kh8 {[%emt 0:02:08]} 19. Qg4 {[%emt 0:06:42]} c5 {[%emt 0:00:
00]} 20. Nc2 {[%emt 0:00:57]} c4 {[%emt 0:03:23]} 21. cxb4 {[%emt 0:12:08]} Qc7
{[%emt 0:00:30]} 22. Ne3 {[%emt 0:00:30]} Ra3 {[%emt 0:03:01]} 23. Qe2 {
[%emt 0:01:54]} Nb6 {[%emt 0:01:56]} 24. Rfc1 {[%emt 0:03:20]} Rc8 {[%emt 0:00:
00]} 25. Qd2 Rca8 {[%emt 0:00:00]} 26. Rc2 {[%emt 0:00:55]} Qa7 {[%emt 0:00:00]
} 27. Qd4 {[%emt 0:00:49]} Rd3 {[%emt 0:00:25]} 28. Qb2 {[%emt 0:00:51]} Na4 {
[%emt 0:01:01]} 29. Qc1 {[%emt 0:00:34]} Qd4 {[%emt 0:01:02]} 30. Nd1 {[%emt 0:
00:00]} c3 {[%emt 0:02:55]} 31. b5 {[%emt 0:00:37]} Ba3 {[%emt 0:01:08]} 32.
Be3 {[%emt 0:01:30]} Bxc1 {[%emt 0:00:08]} 33. Rcxc1 {[%emt 0:00:30]} Qxe5 {
[%emt 0:00:51]} 0-1

[Event "44th Chess Olympiad Women 2022"]
[Site "Chennai"]
[Date "2022.08.01"]
[Round "4.30"]
[White "Onur, Cigdem"]
[Black "Eftovska, Lea"]
[Result "1-0"]
[WhiteElo "2000"]
[BlackElo "1634"]
[Annotator "NA RC"]
[PlyCount "93"]
[EventDate "2022.??.??"]
[TimeControl "60"]

1. e4 {[%emt 0:00:08]} e5 {[%emt 0:00:05]} 2. Nf3 {[%emt 0:00:03]} Nc6 {
[%emt 0:00:07]} 3. Nc3 {[%emt 0:00:03]} Nf6 {[%emt 0:00:15]} 4. Bb5 {[%emt 0:
00:00]} Bb4 {[%emt 0:00:06]} 5. O-O {[%emt 0:00:05]} O-O {[%emt 0:00:36]} 6. d3
{[%emt 0:00:04]} Bxc3 {[%emt 0:01:04]} 7. bxc3 {[%emt 0:00:04]} d6 {[%emt 0:00:
00]} 8. Re1 {[%emt 0:00:03]} Bd7 {[%emt 0:06:53]} 9. d4 {[%emt 0:07:38]} Re8 {
[%emt 0:08:48]} 10. Bd3 {[%emt 0:10:11]} h6 {[%emt 0:06:03]} 11. Rb1 {[%emt 0:
00:00]} b6 {[%emt 0:01:43]} 12. Bb2 {[%emt 0:03:02]} a5 {[%emt 0:28:28]} 13. h3
{[%emt 0:24:01]} Nh7 {[%emt 0:11:33]} 14. Re3 {[%emt 0:03:11]} Nf8 {[%emt 0:00:
00]} 15. Kh2 {[%emt 0:05:47]} Ng6 {[%emt 0:01:58]} 16. g3 {[%emt 0:02:32]} Qc8
{[%emt 0:01:27]} 17. Ng1 {[%emt 0:01:00]} Rf8 {[%emt 0:05:23]} 18. Qh5 {
[%emt 0:10:37]} a4 {[%emt 0:01:35]} 19. Rf1 {[%emt 0:03:52]} Ra5 {[%emt 0:00:
00]} 20. d5 {[%emt 0:00:32]} Nce7 {[%emt 0:00:26]} 21. c4 {[%emt 0:05:41]} f5 {
[%emt 0:10:35]} 22. exf5 {[%emt 0:02:21]} Bxf5 {[%emt 0:00:31]} 23. Bc3 {
[%emt 0:04:58]} Ra8 {[%emt 0:02:02]} 24. Ne2 {[%emt 0:02:41]} e4 {[%emt 0:00:
00]} 25. Bxe4 {[%emt 0:00:35]} Bxe4 {[%emt 0:00:11]} 26. Rxe4 {[%emt 0:00:14]}
Rf5 {[%emt 0:00:13]} 27. g4 {[%emt 0:03:22]} Rxh5 {[%emt 0:00:18]} 28. gxh5 {
[%emt 0:00:04]} Ne5 {[%emt 0:00:48]} 29. f4 {[%emt 0:00:10]} Qf8 {[%emt 0:00:
00]} 30. Nd4 {[%emt 0:02:08]} c6 {[%emt 0:03:37]} 31. Rg1 {[%emt 0:01:27]} Qf7
{[%emt 0:00:44]} 32. fxe5 {[%emt 0:00:18]} dxe5 {[%emt 0:00:08]} 33. Nxc6 {
[%emt 0:00:39]} Nxc6 {[%emt 0:00:22]} 34. dxc6 {[%emt 0:00:03]} Ra7 {[%emt 0:
00:00]} 35. Bxe5 {[%emt 0:01:15]} Qf5 {[%emt 0:00:40]} 36. Re2 {[%emt 0:00:34]}
Re7 {[%emt 0:00:22]} 37. c7 {[%emt 0:00:12]} Kh7 {[%emt 0:00:33]} 38. Rge1 {
[%emt 0:00:50]} Qc8 {[%emt 0:00:47]} 39. Bg3 {[%emt 0:00:29]} Rxe2+ {[%emt 0:
00:00]} 40. Rxe2 {[%emt 0:00:04]} Qd7 {[%emt 0:00:30]} 41. Rf2 {[%emt 0:30:59]}
Qe6 {[%emt 0:30:24]} 42. Rf8 {[%emt 0:00:00]} Qe2+ {[%emt 0:00:00]} 43. Kg1 {
[%emt 0:00:00]} Qd1+ {[%emt 0:00:00]} 44. Kg2 {[%emt 0:00:00]} Qxc2+ {[%emt 0:
00:00]} 45. Bf2 {[%emt 0:00:00]} Qe4+ {[%emt 0:00:00]} 46. Kg1 {[%emt 0:00:00]}
Qb1+ {[%emt 0:00:00]} 47. Kh2 {[%emt 0:00:00]} 1-0

[Event "44th Chess Olympiad Women 2022"]
[Site "Chennai"]
[Date "2022.08.01"]
[Round "4.30"]
[White "Zhezhovska, Monika"]
[Black "Kocyigit, Buse Naz"]
[Result "0-1"]
[WhiteElo "1588"]
[BlackElo "1991"]
[Annotator "NA RC"]
[PlyCount "68"]
[EventDate "2022.??.??"]
[TimeControl "60"]

1. d4 {[%emt 0:00:06]} Nf6 {[%emt 0:00:04]} 2. c4 {[%emt 0:00:08]} g6 {[%emt 0:
00:00]} 3. Nc3 {[%emt 0:00:07]} Bg7 {[%emt 0:00:03]} 4. e4 {[%emt 0:00:17]} d6
{[%emt 0:00:01]} 5. Be2 {[%emt 0:00:10]} O-O {[%emt 0:00:20]} 6. Be3 {[%emt 0:
00:00]} Na6 {[%emt 0:00:30]} 7. g4 {[%emt 0:01:06]} c5 {[%emt 0:01:25]} 8. d5 {
[%emt 0:00:44]} Nc7 {[%emt 0:02:27]} 9. f3 {[%emt 0:01:41]} a6 {[%emt 0:01:08]}
10. a4 {[%emt 0:01:58]} Re8 {[%emt 0:04:04]} 11. Qd2 {[%emt 0:04:12]} e6 {
[%emt 0:08:29]} 12. h4 {[%emt 0:07:46]} exd5 {[%emt 0:00:06]} 13. cxd5 {
[%emt 0:00:11]} Rb8 {[%emt 0:01:43]} 14. a5 {[%emt 0:05:21]} b5 {[%emt 0:02:57]
} 15. axb6 {[%emt 0:02:59]} Rxb6 {[%emt 0:00:07]} 16. Nh3 {[%emt 0:03:03]} Nb5
{[%emt 0:18:31]} 17. Bxb5 {[%emt 0:10:59]} axb5 {[%emt 0:00:10]} 18. Nf4 {
[%emt 0:00:27]} Nd7 {[%emt 0:04:26]} 19. Nd3 {[%emt 0:04:48]} b4 {[%emt 0:00:
00]} 20. Ne2 {[%emt 0:00:47]} Ra6 {[%emt 0:05:32]} 21. Rd1 {[%emt 0:05:57]} Ra2
{[%emt 0:03:22]} 22. Nec1 {[%emt 0:00:24]} Rxb2 {[%emt 0:00:44]} 23. Nxb2 {
[%emt 0:11:00]} Bc3 {[%emt 0:00:08]} 24. Nc4 {[%emt 0:00:34]} Bxd2+ {[%emt 0:
00:00]} 25. Rxd2 {[%emt 0:00:11]} Qf6 {[%emt 0:01:02]} 26. Kf2 {[%emt 0:05:42]}
Ne5 {[%emt 0:04:32]} 27. Nxe5 {[%emt 0:00:48]} Qxe5 {[%emt 0:00:07]} 28. Nd3 {
[%emt 0:00:40]} Qc3 {[%emt 0:00:51]} 29. Rc1 {[%emt 0:00:51]} Qa3 {[%emt 0:00:
00]} 30. Rdd1 {[%emt 0:01:39]} Ba6 {[%emt 0:08:59]} 31. Ra1 {[%emt 0:06:19]}
Qb3 {[%emt 0:00:29]} 32. Ne1 {[%emt 0:00:31]} Qc4 {[%emt 0:03:09]} 33. Nd3 {
[%emt 0:02:17]} b3 {[%emt 0:00:53]} 34. Bc1 {[%emt 0:06:14]} Rb8 {[%emt 0:00:
00]} 0-1

[Event "44th Chess Olympiad Women 2022"]
[Site "Chennai"]
[Date "2022.08.01"]
[Round "4.31"]
[White "Cooke, Suzie G."]
[Black "Martynkova, Olena"]
[Result "1/2-1/2"]
[WhiteElo "1936"]
[BlackElo "2213"]
[Annotator "NA RC"]
[PlyCount "61"]
[EventDate "2022.??.??"]
[TimeControl "60"]

1. d4 {[%emt 0:00:04]} Nf6 {[%emt 0:00:09]} 2. Bf4 {[%emt 0:00:09]} g6 {
[%emt 0:00:26]} 3. Nc3 {[%emt 0:00:29]} d5 {[%emt 0:01:06]} 4. e3 {[%emt 0:00:
00]} Bg7 {[%emt 0:01:10]} 5. h4 {[%emt 0:00:54]} h5 {[%emt 0:05:23]} 6. Nf3 {
[%emt 0:01:12]} O-O {[%emt 0:00:19]} 7. Ne5 {[%emt 0:02:24]} c5 {[%emt 0:07:01]
} 8. Be2 {[%emt 0:00:26]} cxd4 {[%emt 0:13:35]} 9. exd4 {[%emt 0:01:54]} Qb6 {
[%emt 0:35:51]} 10. a3 {[%emt 0:00:51]} Bf5 {[%emt 0:00:00]} 11. Na4 {[%emt 0:
00:00]} Qa5+ {[%emt 0:00:00]} 12. c3 {[%emt 0:03:15]} Nbd7 {[%emt 0:05:09]} 13.
b4 {[%emt 0:02:35]} Qd8 {[%emt 0:00:00]} 14. Nc5 {[%emt 0:04:34]} Nxc5 {
[%emt 0:00:00]} 15. bxc5 {[%emt 0:11:38]} Qa5 {[%emt 0:06:29]} 16. Qb3 {
[%emt 0:10:31]} Rfc8 {[%emt 0:06:49]} 17. O-O {[%emt 0:00:00]} b6 {[%emt 0:00:
00]} 18. Bb5 {[%emt 0:19:35]} Ne4 {[%emt 0:11:03]} 19. Nc6 {[%emt 0:00:00]}
Qxc3 {[%emt 0:00:06]} 20. Qxc3 {[%emt 0:00:00]} Nxc3 {[%emt 0:00:05]} 21. Nxe7+
{[%emt 0:00:00]} Kh8 {[%emt 0:01:24]} 22. Nxc8 {[%emt 0:00:00]} Nxb5 {[%emt 0:
00:00]} 23. Nxb6 {[%emt 0:00:00]} axb6 {[%emt 0:00:08]} 24. cxb6 {[%emt 0:00:
00]} Bc8 {[%emt 0:01:28]} 25. Rab1 {[%emt 0:00:00]} Nxd4 {[%emt 0:00:26]} 26.
Rfe1 {[%emt 0:00:00]} Ne6 {[%emt 0:05:33]} 27. b7 {[%emt 0:01:14]} Bxb7 {
[%emt 0:00:00]} 28. Rxb7 {[%emt 0:00:02]} Nxf4 {[%emt 0:00:00]} 29. Rxf7 {
[%emt 0:00:08]} Nd3 {[%emt 0:00:00]} 30. Ree7 {[%emt 0:00:40]} Bd4 {[%emt 0:00:
00]} 31. Re6 {[%emt 0:02:31]} 1/2-1/2

[Event "44th Chess Olympiad Women 2022"]
[Site "Chennai"]
[Date "2022.08.01"]
[Round "4.31"]
[White "Lampard, Alice"]
[Black "Sibajeva, Marija"]
[Result "0-1"]
[WhiteElo "1729"]
[BlackElo "2032"]
[Annotator "NA RC"]
[PlyCount "90"]
[EventDate "2022.??.??"]
[TimeControl "60"]

1. e4 {[%emt 0:00:03]} d5 {[%emt 0:00:42]} 2. exd5 {[%emt 0:00:06]} Qxd5 {
[%emt 0:00:04]} 3. Nc3 {[%emt 0:00:13]} Qa5 {[%emt 0:00:04]} 4. d4 {[%emt 0:00:
00]} Nf6 {[%emt 0:00:06]} 5. Nf3 {[%emt 0:00:48]} Bf5 {[%emt 0:00:13]} 6. Bc4 {
[%emt 0:00:23]} e6 {[%emt 0:04:00]} 7. Bd2 {[%emt 0:01:01]} Bb4 {[%emt 0:00:38]
} 8. a3 {[%emt 0:00:25]} Bxc3 {[%emt 0:00:04]} 9. Bxc3 {[%emt 0:00:05]} Qb6 {
[%emt 0:00:06]} 10. d5 {[%emt 0:01:23]} Nbd7 {[%emt 0:10:27]} 11. Nd4 {[%emt 0:
00:00]} O-O-O {[%emt 0:08:22]} 12. Nxf5 {[%emt 0:02:18]} exf5 {[%emt 0:00:27]}
13. O-O {[%emt 0:00:33]} Qd6 {[%emt 0:02:28]} 14. f3 {[%emt 0:16:22]} Nb6 {
[%emt 0:02:26]} 15. Qd4 {[%emt 0:10:13]} Nxc4 {[%emt 0:02:17]} 16. Qxc4 {
[%emt 0:02:07]} Nxd5 {[%emt 0:02:50]} 17. Rfd1 {[%emt 0:06:53]} f6 {[%emt 0:00:
00]} 18. Qd3 {[%emt 0:03:23]} Qd7 {[%emt 0:06:16]} 19. Be1 {[%emt 0:09:04]}
Rhe8 {[%emt 0:05:45]} 20. Bf2 {[%emt 0:05:39]} Nf4 {[%emt 0:02:38]} 21. Qxd7+ {
[%emt 0:01:00]} Rxd7 {[%emt 0:00:04]} 22. Rxd7 {[%emt 0:00:26]} Kxd7 {[%emt 0:
00:00]} 23. Re1 {[%emt 0:00:20]} Rxe1+ {[%emt 0:00:25]} 24. Bxe1 {[%emt 0:00:
00]} Ne2+ {[%emt 0:01:52]} 25. Kf2 {[%emt 0:06:01]} Nd4 {[%emt 0:00:06]} 26. c4
{[%emt 0:02:24]} Kc6 {[%emt 0:12:14]} 27. Bb4 {[%emt 0:08:02]} b6 {[%emt 0:00:
00]} 28. Bc3 {[%emt 0:02:14]} Kc5 {[%emt 0:01:15]} 29. Ke3 {[%emt 0:00:20]} Nc6
{[%emt 0:01:34]} 30. b3 {[%emt 0:00:38]} a5 {[%emt 0:01:12]} 31. Kd3 {[%emt 0:
00:00]} Ne5+ {[%emt 0:00:52]} 32. Ke3 {[%emt 0:01:33]} a4 {[%emt 0:02:29]} 33.
Bd4+ {[%emt 0:01:08]} Kc6 {[%emt 0:00:20]} 34. Bxe5 {[%emt 0:00:30]} fxe5 {
[%emt 0:00:04]} 35. b4 {[%emt 0:00:11]} g5 {[%emt 0:03:26]} 36. g4 {[%emt 0:00:
00]} fxg4 {[%emt 0:02:27]} 37. fxg4 {[%emt 0:00:06]} b5 {[%emt 0:01:58]} 38.
cxb5+ {[%emt 0:01:33]} Kd5 {[%emt 0:00:09]} 39. Kd3 {[%emt 0:02:07]} e4+ {
[%emt 0:00:06]} 40. Ke3 {[%emt 0:00:14]} Ke5 {[%emt 0:00:05]} 41. h3 {[%emt 0:
00:00]} Kd5 {[%emt 0:30:53]} 42. Ke2 {[%emt 0:04:48]} Kd4 {[%emt 0:00:08]} 43.
Kd2 {[%emt 0:00:07]} e3+ {[%emt 0:00:09]} 44. Ke2 {[%emt 0:00:05]} Ke4 {
[%emt 0:00:03]} 45. Ke1 {[%emt 0:00:07]} Ke5 {[%emt 0:00:33]} 0-1

[Event "44th Chess Olympiad Women 2022"]
[Site "Chennai"]
[Date "2022.08.01"]
[Round "4.31"]
[White "Simkunaite, Gabija"]
[Black "Hughes, Rhian"]
[Result "1-0"]
[WhiteElo "2010"]
[BlackElo "1843"]
[Annotator "NA RC"]
[PlyCount "101"]
[EventDate "2022.??.??"]
[TimeControl "60"]

1. e4 {[%emt 0:00:12]} d5 {[%emt 0:00:06]} 2. exd5 {[%emt 0:00:12]} Qxd5 {
[%emt 0:00:09]} 3. Nc3 {[%emt 0:00:18]} Qa5 {[%emt 0:00:07]} 4. Bc4 {[%emt 0:
00:00]} Nf6 {[%emt 0:00:31]} 5. d3 {[%emt 0:00:09]} c6 {[%emt 0:00:16]} 6. Bd2
{[%emt 0:00:28]} Bf5 {[%emt 0:01:26]} 7. Nd5 {[%emt 0:02:34]} Qd8 {[%emt 0:00:
00]} 8. Nxf6+ {[%emt 0:00:08]} gxf6 {[%emt 0:00:46]} 9. Qf3 {[%emt 0:00:32]}
Bg6 {[%emt 0:03:12]} 10. O-O-O {[%emt 0:08:13]} Nd7 {[%emt 0:04:16]} 11. d4 {
[%emt 0:10:24]} Nb6 {[%emt 0:08:09]} 12. Qc3 {[%emt 0:09:53]} Nxc4 {[%emt 0:00:
00]} 13. Qxc4 {[%emt 0:00:13]} Qd5 {[%emt 0:07:34]} 14. Qxd5 {[%emt 0:01:25]}
cxd5 {[%emt 0:00:07]} 15. Nh3 {[%emt 0:02:45]} O-O-O {[%emt 0:05:18]} 16. Rde1
{[%emt 0:02:40]} e6 {[%emt 0:03:21]} 17. Nf4 {[%emt 0:01:46]} Bg7 {[%emt 0:00:
00]} 18. h4 {[%emt 0:08:11]} e5 {[%emt 0:06:30]} 19. h5 {[%emt 0:02:13]} exf4 {
[%emt 0:08:28]} 20. hxg6 {[%emt 0:00:04]} fxg6 {[%emt 0:03:24]} 21. Bxf4 {
[%emt 0:00:08]} Rd7 {[%emt 0:05:29]} 22. Re6 {[%emt 0:05:55]} b6 {[%emt 0:00:
00]} 23. a4 {[%emt 0:00:57]} g5 {[%emt 0:12:29]} 24. Bd2 {[%emt 0:00:17]} h6 {
[%emt 0:02:12]} 25. a5 {[%emt 0:01:06]} Kb7 {[%emt 0:00:38]} 26. Bb4 {[%emt 0:
00:00]} f5 {[%emt 0:00:47]} 27. c3 {[%emt 0:00:08]} Rc8 {[%emt 0:05:11]} 28.
Kd2 {[%emt 0:00:30]} Rc6 {[%emt 0:00:25]} 29. a6+ {[%emt 0:00:47]} Kc7 {
[%emt 0:00:12]} 30. Re8 {[%emt 0:00:08]} Rd8 {[%emt 0:00:40]} 31. Rhe1 {
[%emt 0:01:23]} Bf6 {[%emt 0:02:17]} 32. Rf8 {[%emt 0:07:31]} Rxf8 {[%emt 0:00:
00]} 33. Bxf8 {[%emt 0:00:07]} h5 {[%emt 0:00:46]} 34. Re8 {[%emt 0:06:13]} b5
{[%emt 0:01:05]} 35. Bc5 {[%emt 0:01:09]} Rxa6 {[%emt 0:00:16]} 36. Rf8 {
[%emt 0:00:17]} Kb7 {[%emt 0:01:31]} 37. Rf7+ {[%emt 0:00:12]} Kb8 {[%emt 0:00:
00]} 38. Rd7 {[%emt 0:00:12]} g4 {[%emt 0:01:33]} 39. Rxd5 {[%emt 0:00:21]}
Bg5+ {[%emt 0:01:50]} 40. Kd3 {[%emt 0:00:58]} Ra1 {[%emt 0:00:57]} 41. Rxf5 {
[%emt 0:30:25]} Rd1+ {[%emt 0:01:37]} 42. Ke4 {[%emt 0:00:00]} Bc1 {[%emt 0:00:
00]} 43. Kd5 {[%emt 0:00:00]} Re1 {[%emt 0:01:24]} 44. Kc6 {[%emt 0:00:00]} Re8
{[%emt 0:01:39]} 45. Rxh5 {[%emt 0:00:00]} a6 {[%emt 0:02:04]} 46. Ba3 {
[%emt 0:00:00]} Re6+ {[%emt 0:03:34]} 47. Bd6+ {[%emt 0:00:00]} Ka7 {[%emt 0:
00:00]} 48. d5 {[%emt 0:00:00]} Rg6 {[%emt 0:01:53]} 49. Rh7+ {[%emt 0:00:00]}
Ka8 {[%emt 0:00:06]} 50. Kc7 {[%emt 0:00:00]} Rg8 {[%emt 0:02:34]} 51. Kb6 {
[%emt 0:00:00]} 1-0

[Event "44th Chess Olympiad Women 2022"]
[Site "Chennai"]
[Date "2022.08.01"]
[Round "4.31"]
[White "Zaksaite, Salomeja"]
[Black "Roy, Ali"]
[Result "0-1"]
[WhiteElo "2212"]
[BlackElo "1893"]
[Annotator "NA RC"]
[PlyCount "58"]
[EventDate "2022.??.??"]
[TimeControl "60"]

1. e4 {[%emt 0:00:03]} e6 {[%emt 0:00:05]} 2. d4 {[%emt 0:00:16]} d5 {[%emt 0:
00:00]} 3. Nc3 {[%emt 0:00:07]} dxe4 {[%emt 0:00:13]} 4. Nxe4 {[%emt 0:00:17]}
Nd7 {[%emt 0:00:12]} 5. Nf3 {[%emt 0:01:22]} Ngf6 {[%emt 0:00:13]} 6. Nxf6+ {
[%emt 0:00:20]} Nxf6 {[%emt 0:00:09]} 7. Be3 {[%emt 0:00:07]} Be7 {[%emt 0:00:
00]} 8. Bd3 {[%emt 0:04:50]} O-O {[%emt 0:01:51]} 9. Qe2 {[%emt 0:03:47]} b6 {
[%emt 0:02:40]} 10. O-O-O {[%emt 0:02:15]} Bb7 {[%emt 0:01:15]} 11. h4 {
[%emt 0:01:52]} c5 {[%emt 0:19:50]} 12. dxc5 {[%emt 0:02:15]} Qc7 {[%emt 0:00:
00]} 13. h5 {[%emt 0:00:44]} bxc5 {[%emt 0:05:51]} 14. h6 {[%emt 0:01:50]} g6 {
[%emt 0:00:41]} 15. Bg5 {[%emt 0:30:18]} a5 {[%emt 0:05:49]} 16. Rh4 {[%emt 0:
00:00]} a4 {[%emt 0:04:30]} 17. a3 {[%emt 0:02:57]} Bd5 {[%emt 0:04:02]} 18. c4
{[%emt 0:06:19]} Bc6 {[%emt 0:00:44]} 19. g3 {[%emt 0:00:22]} Rfd8 {[%emt 0:00:
00]} 20. Kb1 {[%emt 0:19:28]} Rab8 {[%emt 0:05:40]} 21. Ne5 {[%emt 0:10:15]}
Rb3 {[%emt 0:03:25]} 22. Nxc6 {[%emt 0:03:11]} Qxc6 {[%emt 0:00:05]} 23. Rf4 {
[%emt 0:01:10]} e5 {[%emt 0:03:59]} 24. Qxe5 {[%emt 0:01:12]} Rdxd3 {[%emt 0:
00:00]} 25. Rxd3 {[%emt 0:01:56]} Rxd3 {[%emt 0:00:04]} 26. Bxf6 {[%emt 0:00:
00]} Qh1+ {[%emt 0:00:50]} 27. Ka2 {[%emt 0:00:04]} Qd1 {[%emt 0:00:41]} 28.
Qb8+ {[%emt 0:00:52]} Bf8 {[%emt 0:01:20]} 29. Bg5 {[%emt 0:00:47]} Qb3+ {
[%emt 0:00:24]} 0-1